{"text_format":"1","workbook":"xlsx","n_sheets":3,"sheets":["Sheet1","Sheet2","Sheet3"],"not_rendered":{"charts":0,"images":0,"macros":0,"external_links":0,"defined_names":0,"comments":0,"pivot_tables":0},"unopened":[],"bounds":{"document_bytes":16777216,"sheet_cells":100000,"rows_first":2000,"rows_last":500,"rows_between":2000,"halvings":0,"cell_chars":16384,"cell_head_chars":4096},"cells_cut":0,"cells_raw":0,"read":"whole","date_system":"1900"}

{"sheet":"Sheet1","index":0,"n_rows":107,"n_cols":7,"rows_kept":107,"cut":false,"hidden":false,"merged":[]}
["Status channel - 1",null,"Bit",null,null,null," "]
["Min speed to enable wheelie strat reached",null,0,1,null,null,1]
["Min tps to enable wheelie strat reached",null,1,2,null,null,2]
["Threshold exceeded to trigger wheelie strat",null,2,4,null,null,3]
["Wheelie calculations activated",null,3,8,null,null,4]
["Value of external QS signal",null,4,16,null,null,5]
["QS request",null,5,32,null,null,6]
["QS Cutting",null,6,64,null,null,7]
["TC enabled by POD",null,7,128,null,null,8]
[null,null,null,null,null,{"$f":"SUM(F2:F9)","v":0}]
[null,null,null,null,"seen on CAN data",0]
[null,null,null,null,"Err",{"$f":"F11-F10","v":0}]
[]
["Status channel - 2",null,"Bit"]
["QS enabled by Pod",null,0,1,null,null,9]
["Pit limit request from pod",null,1,2,null,null,10]
["TC enabled from DB",null,2,4,null,null,11]
["TC active",null,3,8,null,null,12]
["QS active",null,4,16,null,null,13]
["Speed pit limiter active",null,5,32,null,null,14]
["Engine running",null,6,64,null,null,15]
["Enable / Disable continuous CAN transmit (typically 1)",null,7,128,null,null,16]
[null,null,null,null,null,{"$f":"SUM(F15:F22)","v":0}]
[null,null,null,null,"seen on CAN data",0]
[null,null,null,null,"err",{"$f":"F24-F23","v":0}]
[]
["DIAG - ERROR - 1",null,null,null,null,"  "]
["CAN - low speed driver re-start",null,0,1,null,null,1]
["CAN - low speed driver disabled",null,1,{"$f":"D28*2","v":2},null,null,2]
["CAN bus error - (signal from CAN bus driver)",null,2,4,null,null,3]
["CAN - low speed - transmit overflow",null,3,8,null," ",4]
["Parameters table not present in memory > use default",null,4,16,null," ",5]
["Throttle value outside range -5 > 105%",null,5,32,null," ",6]
["DIAG - Firmware",null,6,64,null," ",7]
["not used",null,7,128,null," ",8]
[null,null,null,null,null,{"$f":"SUM(F28:F35)","v":0}]
["DIAG - ERROR - 2"]
["POS - fault from self test",null,0,1,null," ",9]
["POS - fault - run time test",null,1,{"$f":"D38*2","v":2},null," ",10]
["POS -  fault - internal device diagnosis",null,2,4,null," ",11]
["CPU clock inisialization fault",null,3,8,null," ",12]
["COIL1 period not valid",null,4,16,null,null,13]
["COIL2 period not valid",null,5,32,null,null,14]
["COIL3 period not valid",null,6,64,null,null,15]
["COIL4 period not valid",null,7,128,null," ",16]
[null,null,null,null,null,{"$f":"SUM(F38:F45)","v":0}]
["DIAG - ERROR - 3"]
["Coils out limititing active (time ON > Max on time)",null,0,1,null,0,17]
["not used",null,1,{"$f":"D48*2","v":2},null,null,18]
["not used",null,2,4,null,0,19]
["not used",null,3,8,null,null,20]
["Setup parameter outside of valid range",null,4,16,null,null,21]
["Coil OUT delay too high (above MAS) use max 8.2ms",null,5,32,null,null,22]
["Invalid map request from POD",null,6,64,null,null,23]
["TC disabled from speed difference too great",null,7,128,null," ",24]
[null,null,null,null,null,{"$f":"SUM(F48:F55)","v":0}]
["DIAG - ERROR - 4"]
["front speed signal above MAX value",null,0,1,null," ",25]
["Rear speed signal above MAX value",null,1,{"$f":"D58*2","v":2},null," ",26]
["HW front/rear speed correlation outside range (time<max)",null,2,4,null,null,27]
["not used",null,3,8,null,null,28]
["CAN1 high speed driver restart",null,4,16,null,null,29]
["CAN1 high speed driver disabled",null,5,32,null,null,30]
["CAN1 high speed transmit overflow",null,6,64,null," ",31]
[" ",null," "," ",null," ",32]
[null,null,null,null,null,{"$f":"SUM(F58:F65)","v":0}]
[]
["DIAG - WARN - 1",null,null,null,null,"  "]
["no data received from dash",null,0,1,null,null,1]
["no data received from ECU",null,1,{"$f":"D69*2","v":2},null,null,2]
["no data received from TC-Pod",null,2,4,null," ",3]
["POS self test running at power on",null,3,8,null," ",4]
["device re-start (typical at power on)",null,4,16,null," ",5]
["HW calibration tables not present - will use default",null,5,32,null," ",6]
["not used",null,6,64,null," ",7]
["not used",null,7,128,null," ",8]
[null,null,null,null,null,{"$f":"SUM(F69:F76)","v":0}]
["DIAG - WARN - 2"]
["PCB over temp at 80deg C",null,0,1,null," ",9]
["not used",null,1,{"$f":"D79*2","v":2},null," ",10]
["not used",null,2,4,null," ",11]
["not used",null,3,8,null," ",12]
["Power supply under 10v",null,4,16,null,null,13]
["power supply over 16v",null,5,32,null,null,14]
["sensor supply under 4.5v",null,6,64,null,null,15]
["sensor supply over 5.5v",null,7,128,null," ",16]
[null,null,null,null,null,{"$f":"SUM(F79:F86)","v":0}]
["DIAG - WARN - 3"]
["TC disabled due to dSpeed too great",null,0,1,null,0,17]
["TC disabled by strategy speed / rpm or tps",null,1,{"$f":"D89*2","v":2},null,null,18]
["front speed below min",null,2,4,null,0,19]
["rear speed below min",null,3,8,null,null,20]
["front / rear correlation too great (dSpeed>limit for time >max)",null,4,16,null,null,21]
["not used",null,5,32,null,null,22]
["not used",null,6,64,null,null,23]
["not used",null,7,128,null," ",24]
[null,null,null,null,null,{"$f":"SUM(F89:F96)","v":0}]
["DIAG - WARN - 4"]
["not used",null,0,1,null," ",25]
["not used",null,1,{"$f":"D99*2","v":2},null," ",26]
["not used",null,2,4,null,null,27]
["not used",null,3,8,null,null,28]
["not used",null,4,16,null,null,29]
["not used",null,5,32,null," ",30]
["not used",null,6,64,null," ",31]
["not used",null," "," ",null," ",32]
[null,null,null,null,null,{"$f":"SUM(F99:F106)","v":0}]

{"sheet":"Sheet2","index":1,"n_rows":0,"n_cols":0,"rows_kept":0,"cut":false,"hidden":false,"merged":[]}

{"sheet":"Sheet3","index":2,"n_rows":0,"n_cols":0,"rows_kept":0,"cut":false,"hidden":false,"merged":[]}